bitfinex/quotes_SOLUSD_20251115
["timestamp","ask_amount","ask_price","bid_price","bid_amount"]
[1763246199068,8.58,138.87,138.86,0.69]
[1763246199462,8.58,138.88,138.86,0.69]
[1763246199655,7.88683339,138.95,138.87,4.72840113]
[1763246199872,4.72840113,139.02,138.9,4.72840113]
[1763246199873,8.58,138.93,138.9,4.72840113]
[1763246200078,4.72840113,138.97,138.91,29.9245713]
[1763246200378,8.58,138.96,138.91,29.9245713]
[1763246200573,8.58,138.96,138.92,0.69]
[1763246201273,8.58,138.96,138.93,7.19786943]
[1763246201574,8.58,138.96,138.92,0.69]
[1763246201766,8.58,138.96,138.93,0.69]
[1763246202169,15.77633249,138.96,138.93,0.69]
[1763246202479,9.78882769,138.93,138.87,0.69]
[1763246202772,4.72840113,138.9,138.87,0.69]
[1763246203075,4.72840113,138.88,138.83,0.67]
[1763246203271,15.78132792,138.87,138.83,0.67]
[1763246203573,4.72840113,138.84,138.78,0.67]
[1763246203784,9.78882769,138.81,138.78,0.67]
[1763246204082,8.6,138.8,138.76,0.67]
[1763246205265,15.8049477,138.8,138.76,0.67]
[1763246205676,20.53334883,138.8,138.76,0.67]
[1763246206781,8.6,138.8,138.76,7.87662701]
[1763246207560,8.6,138.8,138.77,0.67]
[1763246208865,8.6,138.8,138.77,5.39840113]
[1763246209065,8.6,138.81,138.78,5.39840113]
[1763246209563,8.6,138.81,138.79,7.87513005]
[1763246209969,8.6,138.81,138.8,0.67]
[1763246211866,8.6,138.81,138.8,7.87461095]
[1763246212183,8.6,138.82,138.8,7.87461095]
[1763246212361,8.6,138.82,138.78,0.67]
[1763246212362,4.72840113,138.81,138.78,0.67]
[1763246212559,4.72840113,138.8,138.76,0.67]
[1763246212755,8.6,138.79,138.77,0.67]
[1763246212960,8.6,138.79,138.74,0.67]
[1763246213177,8.6,138.79,138.74,5.39840113]
[1763246213688,8.6,138.79,138.75,0.67]
[1763246214074,8.6,138.79,138.75,7.87695915]
[1763246214587,8.6,138.79,138.76,0.67]
[1763246215183,20.53382709,138.79,138.76,0.67]
[1763246216502,15.80542596,138.79,138.76,0.67]
[1763246217699,8.6,138.79,138.76,0.67]
[1763246217876,9.78882769,138.79,138.76,0.67]
[1763246218088,8.6,138.78,138.76,0.67]
[1763246219698,8.6,138.78,138.76,7.87662021]
[1763246219903,8.6,138.79,138.76,7.87662021]
[1763246220076,8.6,138.79,138.77,0.67]
[1763246220612,0.68,138.86,138.77,0.67]
[1763246220824,4.72840113,138.84,138.78,4.72840113]
[1763246221103,4.72840113,138.81,138.78,0.67]
[1763246221302,13.32840113,138.8,138.75,7.20716301]
[1763246221605,8.6,138.79,138.76,0.67]
[1763246221800,8.6,138.79,138.76,7.87659491]
[1763246222207,8.6,138.79,138.77,0.67]
[1763246222506,7.88374179,138.82,138.77,0.67]
[1763246222507,8.6,138.82,138.77,5.39840113]
[1763246222694,8.6,138.82,138.78,4.72840113]
[1763246222903,8.6,138.82,138.79,0.67]
[1763246223088,14.51722882,138.86,138.79,5.39840113]
[1763246223292,4.72840113,138.86,138.8,4.72840113]
[1763246223486,8.6,138.85,138.8,5.39840113]
[1763246223717,8.6,138.85,138.81,0.67]
[1763246224013,8.6,138.85,138.82,7.20357297]
[1763246224195,8.6,138.85,138.82,25.2125054]
[1763246224509,14.00840113,138.85,138.81,7.87395185]
[1763246224907,16.12657275,138.85,138.81,7.87395185]
[1763246225794,23.3287034,138.85,138.81,7.87395185]
[1763246226176,15.80213065,138.85,138.81,7.87395185]
[1763246226677,8.6,138.85,138.81,7.87395185]
[1763246226881,8.6,138.85,138.82,8.19657275]
[1763246227297,0.68,138.9,138.84,7.52657275]
[1763246227477,7.52657275,138.9,138.85,7.52657275]
[1763246227681,8.6,138.89,138.85,8.19657275]
[1763246227922,8.6,138.89,138.87,7.20097933]
[1763246228205,8.6,138.89,138.88,0.67]
[1763246228410,7.52657275,138.92,138.88,0.67]
[1763246228610,8.6,138.91,138.88,0.67]
[1763246230206,23.3255739,138.91,138.88,0.67]
[1763246230607,15.79900115,138.91,138.88,0.67]
[1763246230810,8.6,138.91,138.88,0.67]
[1763246230985,7.52657275,138.89,138.86,22.6512]
[1763246231300,16.12657275,138.88,138.84,0.67]
[1763246231900,14.72864225,138.85,138.8,0.7]
[1763246232104,8.6,138.84,138.81,0.7]
[1763246232296,7.20163281,138.86,138.81,8.22657275]
[1763246232495,8.6,138.85,138.81,8.22657275]
[1763246232710,8.6,138.85,138.82,0.7]
[1763246233294,8.6,138.86,138.83,7.52657275]
[1763246233712,7.20058076,138.88,138.83,0.69]
[1763246234012,23.32763844,138.87,138.84,0.69]
[1763246234314,17.99921534,138.9,138.84,15.41908063]
[1763246234315,14.72633765,138.9,138.84,15.41908063]
[1763246234520,0.66,138.93,138.86,7.52657275]
[1763246234691,8.6,138.92,138.87,7.52657275]
[1763246234896,7.52657275,138.94,138.88,30.17777275]
[1763246235098,8.6,138.93,138.88,30.17777275]
[1763246235406,8.6,138.93,138.89,0.69]
[1763246236222,7.3970167,138.95,138.89,0.69]
[1763246236223,0.2,138.95,138.9,14.72599679]
[1763246236392,8.8,138.95,138.9,14.72599679]
[1763246236591,8.8,138.95,138.91,0.69]
[1763246237125,0.2,138.95,138.91,0.69]
[1763246237415,0.2,138.95,138.93,7.52657275]
[1763246237617,0.2,138.95,138.94,7.52657275]
[1763246237798,0.2,138.95,138.94,8.21657275]
[1763246238118,8.8,139.01,138.97,29.84653782]
[1763246238305,8.8,139.01,138.97,37.37311057]
[1763246238615,8.8,139.01,138.98,0.69]
[1763246238817,0.2,139.01,138.98,0.69]
[1763246239005,0.2,139.01,138.95,7.19632378]
[1763246239006,7.52657275,138.99,138.95,0.69]
[1763246239201,9.78882769,138.99,138.94,22.6512]
[1763246239399,7.52657275,138.98,138.94,23.3412]
[1763246239594,9.26,139.0,138.95,0.69]
[1763246239595,8.6,138.97,138.95,0.69]
[1763246239796,0.2,139.01,138.96,22.6512]
[1763246240021,8.18657275,139.1,139.03,22.6512]
[1763246240198,7.18855581,139.11,139.06,7.52657275]
[1763246240496,23.33468511,139.12,139.06,7.52657275]
[1763246240696,33.77821011,139.12,139.06,8.21657275]
[1763246240897,34.43821011,139.12,139.06,8.21657275]
[1763246241716,34.43821011,139.12,139.07,7.52657275]
[1763246241899,34.43821011,139.12,139.0,101.99999999]
[1763246241900,7.52657275,139.1,139.04,0.69]
[1763246242100,7.52657275,139.08,139.02,30.17777275]
[1763246242308,9.78882769,139.07,138.99,0.69]
[1763246242505,7.52657275,139.05,138.99,0.69]
[1763246242728,16.80657275,139.06,139.0,7.52657275]
[1763246243431,7.19165767,139.05,139.0,8.21657275]
[1763246244819,7.19165767,139.05,139.01,0.69]
[1763246245215,7.19165767,139.05,139.01,8.21657275]
[1763246246624,7.19165767,139.05,138.99,29.84593193]
[1763246246625,10.44882769,139.04,138.99,8.21657275]
[1763246246808,8.62,139.03,138.99,8.21657275]
[1763246247724,7.19320961,139.02,138.99,0.69]
[1763246248519,0.66,139.04,139.0,7.52657275]
[1763246248711,8.62,139.03,139.0,7.52657275]
[1763246249031,7.19205132,139.05,138.99,7.88473997]
[1763246249032,8.62,139.02,139.01,7.52657275]
[1763246249232,8.62,139.02,139.01,8.21657275]
[1763246249732,17.63985624,139.07,139.02,7.19320961]
[1763246249910,8.62,139.06,139.02,8.21657275]
[1763246251930,7.85078712,139.07,139.03,8.21657275]
[1763246252114,7.19017115,139.08,139.04,7.52657275]
[1763246252303,8.62,139.07,139.05,7.52657275]
[1763246252510,8.62,139.07,139.05,8.21657275]
[1763246252716,8.62,139.07,139.05,0.69]
[1763246252922,8.62,139.07,139.03,15.40916418]
[1763246253222,7.18974206,139.09,139.04,0.69]
[1763246253530,8.62,139.08,139.04,0.69]
[1763246253732,9.78882769,139.08,139.02,22.6512]
[1763246253922,9.78882769,139.06,139.01,8.21657275]
[1763246254124,9.78882769,139.06,139.01,0.69]
[1763246254324,0.66,139.05,139.0,7.52657275]
[1763246254543,0.66,139.05,138.99,30.53588696]
[1763246254544,8.62,139.04,138.96,0.69]
[1763246254747,10.44882769,139.03,138.97,7.52657275]
[1763246255518,10.44882769,139.03,138.97,8.21657275]
[1763246256038,7.19320961,139.02,138.98,7.52657275]
[1763246256218,8.62,139.01,138.98,7.52657275]
[1763246256419,8.62,139.01,138.97,7.88578949]
[1763246256630,8.62,139.01,138.98,7.52657275]
[1763246257959,8.62,139.01,138.97,22.6512]
[1763246258119,0.66,139.0,138.97,7.52657275]
[1763246258539,33.79841047,139.01,138.97,7.52657275]
[1763246258740,33.79841047,139.01,138.97,8.21657275]
[1763246259041,33.79841047,139.01,138.97,0.69]
[1763246260163,34.45841047,139.01,138.97,0.69]
[1763246260333,34.45841047,139.01,138.96,14.72277037]
[1763246260653,34.45841047,139.01,138.97,7.52657275]
[1763246261548,15.8140928,139.01,138.98,0.69]
[1763246261728,9.78882769,139.05,139.0,7.52657275]
[1763246261913,8.62,139.04,139.0,7.52657275]
[1763246262119,8.62,139.03,139.01,0.69]
[1763246262346,8.62,139.03,139.01,8.21657275]
[1763246263242,8.62,139.03,139.01,0.69]
[1763246265044,8.62,139.02,139.01,0.69]
[1763246265221,7.19177848,139.05,139.01,0.69]
[1763246265427,8.62,139.04,139.01,0.69]
[1763246265627,8.62,139.03,139.01,0.69]
[1763246266165,0.7,139.08,139.02,7.52657275]
[1763246266325,25.59952671,139.07,139.03,7.52657275]
[1763246266660,25.59952671,139.07,139.02,8.21657275]
[1763246267030,25.59952671,139.07,139.03,0.69]
[1763246267232,25.59952671,139.07,139.03,15.40918829]
[1763246267429,0.7,139.08,139.04,8.21657275]
[1763246267430,7.19021299,139.08,139.04,8.21657275]
[1763246267627,7.88953685,139.1,139.05,7.52657275]
[1763246267827,8.62,139.09,139.05,8.21657275]
[1763246268156,16.84657275,139.09,139.03,15.40918829]
[1763246269163,7.19010641,139.08,139.03,15.40918829]
[1763246269332,8.62,139.07,139.03,15.40918829]
[1763246269643,8.62,139.07,139.04,0.69]
[1763246270158,16.97847875,139.09,139.04,8.21657275]
[1763246270367,10.48882769,139.11,139.06,7.52657275]
[1763246270368,8.62,139.08,139.06,7.52657275]
[1763246270665,8.62,139.07,139.06,7.52657275]
[1763246271554,8.62,139.07,139.06,15.40771326]
[1763246271927,8.62,139.07,139.06,0.69]
[1763246272354,16.14657275,139.07,139.03,7.88266698]
[1763246272768,9.32,139.07,139.03,7.88266698]
[1763246272987,7.52657275,139.05,138.99,0.69]
[1763246273267,8.62,139.04,138.99,8.21657275]
[1763246273472,15.81257165,139.04,138.99,15.41096608]
[1763246273636,15.81257165,139.04,139.0,0.69]
[1763246274277,8.62,139.04,139.0,8.21657275]
[1763246274486,8.62,139.04,139.01,7.52657275]
[1763246274675,8.62,139.03,139.02,7.52657275]
[1763246274877,8.62,139.04,139.02,8.21657275]
[1763246275180,8.62,139.04,139.03,8.21657275]
[1763246275685,8.62,139.04,139.03,15.40926497]
[1763246276463,8.62,139.04,139.0,8.21657275]
[1763246276464,15.81226439,139.04,139.0,8.21657275]
[1763246276660,8.62,139.04,139.01,0.69]
[1763246276859,8.62,139.04,139.01,8.21657275]
[1763246277770,0.7,139.07,139.02,7.19320961]
[1763246278076,8.62,139.06,139.03,7.52657275]
[1763246278278,8.62,139.06,139.03,8.21657275]
[1763246278682,8.62,139.06,139.03,0.69]
[1763246278977,8.62,139.05,139.03,0.69]
[1763246279684,16.51167916,139.05,138.99,15.4112177]
[1763246280062,16.51167916,139.05,138.95,50.0]
[1763246280063,8.22657275,139.04,138.97,14.72191047]
[1763246280263,15.81167916,139.05,138.97,7.88533772]
[1763246280264,8.22657275,139.03,138.97,7.88533772]
[1763246280463,8.62,139.02,139.0,7.52657275]
[1763246280671,8.62,139.02,139.0,8.21657275]
[1763246280881,8.62,139.02,139.01,0.69]
[1763246281679,8.62,139.05,139.02,25.17623363]
[1763246281982,8.62,139.05,139.03,7.52657275]
[1763246282282,8.62,139.05,139.03,8.21657275]
[1763246282486,0.7,139.08,139.04,8.21657275]
[1763246282656,8.62,139.07,139.05,7.19165767]
[1763246284083,7.18872742,139.11,139.05,14.71823042]
[1763246284285,17.96958004,139.13,139.06,0.69]
[1763246284286,8.62,139.1,139.06,0.69]
[1763246284673,8.62,139.1,139.06,8.21657275]
[1763246284889,8.62,139.1,139.07,7.88062342]
[1763246285272,8.62,139.09,139.08,0.69]
[1763246285475,8.62,139.1,139.08,0.69]
[1763246285988,8.62,139.11,139.08,8.21657275]
[1763246286165,8.62,139.11,139.09,7.52657275]
[1763246286361,7.72657275,139.17,139.1,30.17777275]
[1763246286565,8.62,139.16,139.12,7.52657275]
[1763246286765,8.42657275,139.17,139.13,7.18752246]
[1763246286987,0.9,139.17,139.13,7.18752246]
[1763246287285,8.62,139.16,139.13,0.69]
[1763246288063,5.40614977,139.15,139.1,25.85142145]
[1763246288289,13.32614977,139.16,139.11,0.69]
[1763246288592,4.70614977,139.14,139.1,25.16142145]
[1763246288774,8.62,139.13,139.1,17.97268152]
[1763246288970,7.88653167,139.15,139.1,23.36883129]
[1763246288971,0.7,139.15,139.1,23.36883129]
[1763246289181,0.7,139.15,139.11,0.69]
[1763246289391,8.62,139.14,139.11,0.69]
[1763246289585,8.62,139.14,139.11,5.39614977]
[1763246289780,0.7,139.16,139.11,5.39614977]
[1763246289984,8.62,139.15,139.12,0.69]
[1763246290298,0.2,139.17,139.13,4.70614977]
[1763246290600,4.70614977,139.15,139.1,0.69]
[1763246290904,13.32614977,139.14,139.1,7.87870476]
[1763246291208,0.2,139.17,139.11,5.39614977]
[1763246291408,8.62,139.16,139.13,4.70614977]
[1763246291609,0.2,139.17,139.13,4.70614977]
[1763246291913,13.32614977,139.16,139.11,0.71]
[1763246292215,13.32614977,139.16,139.12,0.71]
[1763246292514,8.62,139.16,139.12,0.71]
[1763246293113,0.2,139.17,139.13,29.86247838]
[1763246293311,8.82,139.17,139.13,29.86247838]
[1763246293495,8.82,139.17,139.14,0.67]
[1763246293811,13.52614977,139.17,139.13,7.85752246]
[1763246293982,14.20614977,139.17,139.13,7.85752246]
[1763246294178,4.70614977,139.16,139.13,7.85752246]
[1763246294383,14.20614977,139.17,139.13,7.85752246]
[1763246295218,21.39166066,139.17,139.13,7.85752246]
[1763246296481,14.20614977,139.17,139.13,7.85752246]
[1763246296686,9.5,139.17,139.13,7.85752246]
[1763246296905,16.68552439,139.17,139.13,7.85752246]
[1763246299207,9.5,139.17,139.13,7.85752246]
[1763246301418,8.82,139.17,139.14,0.67]
[1763246301818,8.82,139.17,139.13,25.15632861]
[1763246302106,8.82,139.17,139.1,5.37614977]
[1763246302107,5.38614977,139.16,139.1,5.37614977]
[1763246302292,4.70614977,139.15,139.1,23.3212]
[1763246302490,8.62,139.14,139.1,28.02734977]
[1763246302915,8.62,139.14,139.11,7.18855581]
[1763246303109,8.62,139.14,139.11,7.85855581]
[1763246303908,4.70614977,139.12,139.06,0.67]
[1763246304117,13.32614977,139.11,139.06,0.67]
[1763246304410,8.62,139.11,139.06,5.37614977]
[1763246304600,8.62,139.11,139.07,0.67]
[1763246304794,0.68,139.12,139.07,5.37614977]
[1763246305110,8.62,139.11,139.08,7.19010641]
[1763246305895,8.62,139.1,139.08,7.19010641]
[1763246312732,0.68,139.15,139.09,0.67]
[1763246312902,13.32614977,139.14,139.09,0.67]
[1763246314428,8.62,139.14,139.09,0.67]
[1763246314629,4.90614977,139.17,139.11,29.86609512]
[1763246314826,8.62,139.16,139.12,4.70614977]
[1763246315004,0.2,139.17,139.13,4.70614977]
[1763246315202,0.2,139.17,139.13,5.37614977]
[1763246315403,0.2,139.17,139.14,0.67]
[1763246315726,0.2,139.17,139.14,5.37614977]
[1763246316233,0.2,139.17,139.15,0.67]
[1763246316615,0.2,139.17,139.16,7.18597298]
[1763246316816,0.2,139.17,139.16,43.16332275]
[1763246317131,0.2,139.23,139.16,97.7281201]
[1763246317321,4.90614977,139.23,139.17,5.37614977]
[1763246317521,0.2,139.23,139.18,8.62]
[1763246317832,4.90614977,139.23,139.18,9.29]
[1763246318135,4.90614977,139.23,139.19,0.67]
[1763246318726,0.2,139.23,139.22,7.18287602]
[1763246319115,0.2,139.26,139.22,30.51621584]
[1763246319331,0.2,139.26,139.24,4.70614977]
[1763246319730,0.2,139.26,139.25,5.37614977]
[1763246319917,0.2,139.3,139.28,22.6512]
[1763246320109,0.2,139.3,139.29,5.37614977]
[1763246320415,0.2,139.33,139.29,5.37614977]
[1763246320614,0.2,139.33,139.32,27.35734977]
[1763246320819,5.1,139.38,139.32,43.13507012]
[1763246321033,5.38614977,139.4,139.35,22.6512]
[1763246321334,14.00614977,139.4,139.35,22.6512]
[1763246321518,9.3,139.4,139.35,28.02734977]
[1763246321724,8.62,139.4,139.35,28.02734977]
[1763246321912,5.38614977,139.42,139.35,28.02734977]
[1763246322116,5.38614977,139.42,139.35,87.81617746]
[1763246322117,8.6,139.42,139.35,87.81617746]
[1763246322350,8.28,139.47,139.41,4.70614977]
[1763246322512,12.98614977,139.47,139.41,5.37614977]
[1763246322711,8.28,139.47,139.42,29.81015206]
[1763246322932,8.28,139.47,139.42,30.48015206]
[1763246323238,8.28,139.47,139.4,22.6512]
[1763246323239,4.70614977,139.43,139.4,22.6512]
[1763246323544,4.70614977,139.41,139.36,4.70614977]
[1763246323712,4.70614977,139.38,139.32,12.55377598]
[1763246323920,4.70614977,139.37,139.33,8.62]
[1763246324127,4.70614977,139.37,139.33,31.2712]
[1763246324432,4.70614977,139.36,139.32,7.84762621]
[1763246324637,4.70614977,139.36,139.32,30.49882621]
[1763246324810,5.38614977,139.35,139.31,15.79820914]
[1763246325011,11.88078027,139.38,139.32,5.37614977]
[1763246326122,0.68,139.38,139.33,4.70614977]
[1763246326310,0.68,139.38,139.34,22.6512]
[1763246327530,0.68,139.38,139.34,29.82766121]
[1763246332641,0.68,139.38,139.34,30.49766121]
[1763246333345,20.48028306,139.39,139.35,7.84606136]
[1763246333532,21.16028306,139.39,139.35,7.84606136]
[1763246334649,21.16028306,139.39,139.35,7.17606136]
[1763246334850,21.16028306,139.39,139.34,29.82787745]
[1763246335022,21.16028306,139.39,139.34,30.49787745]
[1763246335924,21.16028306,139.39,139.35,7.84596625]
[1763246336337,0.68,139.38,139.35,7.17596625]
[1763246337025,8.6,139.39,139.35,7.17596625]
[1763246337225,9.28,139.39,139.35,7.17596625]
[1763246337426,9.28,139.39,139.35,7.84596625]
[1763246337752,0.68,139.38,139.34,22.6512]
[1763246338066,21.67027831,139.37,139.31,15.79805208]
[1763246338248,13.28614977,139.36,139.31,15.79805208]
[1763246338550,13.96614977,139.36,139.31,38.44925208]
[1763246338728,13.96614977,139.36,139.31,39.11925208]
[1763246338923,0.68,139.35,139.31,39.11925208]
[1763246339124,9.78882769,139.34,139.24,85.90804954]
[1763246339324,13.96614977,139.33,139.27,5.37614977]
[1763246339557,0.68,139.35,139.29,27.35734977]
[1763246339848,8.6,139.36,139.3,4.70614977]
[1763246340146,8.6,139.35,139.3,11.88450694]
[1763246340329,8.6,139.35,139.31,0.67]
[1763246341142,9.28,139.35,139.31,0.67]
[1763246341351,8.6,139.35,139.3,7.17835717]
[1763246341533,0.68,139.34,139.3,7.84835717]
[1763246341733,0.68,139.34,139.28,53.88648943]
[1763246341734,4.70614977,139.33,139.29,7.17922745]
[1763246341958,8.6,139.32,139.26,31.92785484]
[1763246342148,0.68,139.31,139.26,16.45067026]
[1763246342352,5.38614977,139.31,139.26,16.45067026]
[1763246342663,4.70614977,139.29,139.25,7.18131161]
[1763246342951,8.6,139.28,139.24,7.18170086]
[1763246343162,9.28,139.28,139.24,7.18170086]
[1763246343344,8.6,139.28,139.25,0.67]
[1763246343535,8.6,139.28,139.25,5.37614977]
[1763246343930,8.6,139.3,139.26,5.37614977]
[1763246344149,8.6,139.3,139.27,7.18029726]
[1763246344330,8.6,139.3,139.27,29.83719019]
[1763246344754,8.6,139.3,139.27,25.80104042]
[1763246344936,8.6,139.3,139.27,7.85029726]
[1763246345254,0.68,139.29,139.26,7.18067966]
[1763246345458,5.38614977,139.29,139.24,39.10261333]
[1763246345662,5.38614977,139.28,139.24,38.43261333]
[1763246345958,8.6,139.27,139.24,29.83261333]
[1763246346329,13.98614977,139.27,139.22,0.67]
[1763246346529,0.68,139.26,139.22,0.67]
[1763246346936,8.6,139.27,139.22,12.55887221]
[1763246347455,9.28,139.27,139.23,0.67]
[1763246348353,0.68,139.27,139.24,7.18184429]
[1763246348534,9.28,139.27,139.24,7.18184429]
[1763246348737,8.6,139.27,139.24,7.18184429]
[1763246349154,9.28,139.27,139.24,7.18184429]
[1763246349939,8.16010012,139.26,139.22,7.18287602]
[1763246350455,0.68,139.26,139.22,7.18287602]
[1763246350859,8.6,139.27,139.23,0.67]
[1763246352054,9.29,139.27,139.23,0.67]
[1763246352363,7.48010012,139.25,139.2,7.48010012]
[1763246352657,8.6,139.24,139.2,7.18344426]
[1763246352958,9.29,139.24,139.2,7.87344426]
[1763246353254,16.77010012,139.24,139.2,7.87344426]
[1763246353444,9.29,139.24,139.2,7.87344426]
[1763246353643,9.27,139.24,139.2,7.87344426]
[1763246353848,8.6,139.24,139.2,0.68]
[1763246354348,8.6,139.24,139.21,7.18339199]
[1763246354541,9.27,139.24,139.21,7.18339199]
[1763246355243,16.45186974,139.24,139.2,7.86371468]
[1763246355446,0.67,139.23,139.2,7.18371468]
[1763246356055,0.67,139.23,139.19,29.83551101]
[1763246356364,15.33281186,139.23,139.19,7.18431101]
[1763246356541,16.08010012,139.22,139.19,7.18431101]
[1763246356737,16.75010012,139.22,139.19,7.18431101]
[1763246357049,17.93892781,139.21,139.15,25.44587541]
[1763246357250,17.93892781,139.21,139.15,26.12587541]
[1763246358156,8.6,139.21,139.18,7.48010012]
[1763246358366,8.6,139.21,139.18,7.18494036]
[1763246358565,0.67,139.2,139.18,7.18494036]
[1763246359136,0.67,139.2,139.17,7.18528426]
[1763246359336,8.6,139.21,139.17,7.18528426]
[1763246359563,8.6,139.2,139.17,7.86528426]
[1763246359760,8.6,139.2,139.17,25.82892584]
[1763246360144,8.6,139.2,139.17,7.86528426]
[1763246360746,8.6,139.2,139.17,7.18528426]
[1763246361469,8.6,139.2,139.17,7.86528426]
[1763246361657,8.15010012,139.23,139.18,0.68]
[1763246361846,16.08010012,139.22,139.18,0.68]
[1763246362043,16.75010012,139.22,139.18,0.68]
[1763246362764,9.78882769,139.25,139.18,30.81130012]
[1763246362949,8.6,139.24,139.22,7.48010012]
[1763246363146,8.6,139.24,139.21,30.13130012]
[1763246363347,8.6,139.24,139.21,0.68]
[1763246363968,8.6,139.24,139.21,7.8631723]
[1763246365364,23.93202579,139.24,139.2,7.18372201]
[1763246365866,8.6,139.24,139.2,7.86372201]
[1763246366161,8.6,139.24,139.21,8.16010012]
[1763246366363,17.93892781,139.28,139.23,7.48010012]
[1763246366664,8.6,139.27,139.24,0.68]
[1763246367764,9.27,139.28,139.24,8.16010012]
[1763246367965,9.27,139.28,139.25,25.1346499]
[1763246368966,0.67,139.28,139.25,25.1346499]
[1763246369270,9.27,139.28,139.25,25.1346499]
[1763246369737,0.67,139.32,139.26,8.16010012]
[1763246369943,8.58,139.31,139.27,32.61114054]
[1763246370164,8.58,139.31,139.28,0.68]
[1763246371267,15.32695115,139.34,139.28,8.16010012]
[1763246371453,9.78882769,139.36,139.29,7.48010012]
[1763246371454,8.58,139.33,139.29,7.48010012]
[1763246371771,8.58,139.33,139.3,0.68]
[1763246372065,8.58,139.33,139.31,7.17823558]
[1763246373568,17.93892781,139.36,139.31,7.85823558]
[1763246373868,8.58,139.35,139.31,7.85823558]
[1763246375052,9.25,139.35,139.31,25.80382455]
[1763246375655,8.58,139.35,139.31,25.80382455]
[1763246375873,8.58,139.35,139.32,0.68]
[1763246376459,16.06010012,139.36,139.33,7.17720519]
[1763246377960,16.06010012,139.36,139.32,7.85753028]
[1763246378165,8.15010012,139.35,139.32,7.17753028]
[1763246378473,7.48010012,139.35,139.32,7.85753028]
[1763246378973,16.73010012,139.36,139.32,7.85753028]
[1763246380469,16.73010012,139.36,139.32,25.80183117]
[1763246383775,7.48010012,139.34,139.31,7.17818606]
[1763246383976,16.06010012,139.34,139.31,7.17818606]
[1763246384178,16.78010012,139.34,139.3,23.3412]
[1763246384764,16.78010012,139.34,139.3,25.81561385]
[1763246385064,7.48010012,139.31,139.26,0.69]
[1763246385257,8.58,139.3,139.26,0.69]
[1763246385460,8.58,139.3,139.26,23.3412]
[1763246385855,8.58,139.3,139.27,0.69]
[1763246386054,16.06010012,139.3,139.28,7.17978173]
[1763246386250,16.06010012,139.3,139.27,7.18014173]
[1763246386483,8.58,139.3,139.27,7.18014173]
[1763246386977,8.58,139.31,139.28,8.17010012]
[1763246387359,8.58,139.31,139.29,0.69]
[1763246388367,8.58,139.32,139.3,7.17875089]
[1763246388552,8.58,139.32,139.3,25.12562813]
[1763246391482,8.58,139.32,139.3,7.17875089]
[1763246395680,131.92860298,139.36,139.31,0.69]
[1763246395681,104.2,139.36,139.31,0.69]
[1763246395890,9.78882769,139.37,139.32,7.48010012]
[1763246396179,9.78882769,139.37,139.31,9.27]
[1763246396180,9.3,139.37,139.33,8.17010012]
[1763246396382,9.3,139.37,139.34,7.17669011]
[1763246397789,9.78882769,139.4,139.35,8.17010012]
[1763246397970,8.58,139.39,139.35,8.17010012]
[1763246398177,8.58,139.39,139.36,0.69]
[1763246398362,8.58,139.39,139.37,7.17514529]
[1763246399689,8.58,139.39,139.37,14.65524541]
[1763246399872,18.36882769,139.41,139.38,0.69]
[1763246400078,8.58,139.41,139.38,8.17010012]
[1763246400279,9.28,139.45,139.41,22.6512]
[1763246400599,10.50882769,139.44,139.41,22.6512]
[1763246400791,8.58,139.43,139.41,22.6512]
[1763246401085,17.26892781,139.42,139.36,7.17566016]
[1763246401288,7.48010012,139.4,139.36,7.17566016]
[1763246401666,8.20010012,139.4,139.36,7.17566016]
[1763246402091,8.20010012,139.4,139.36,7.86566016]
[1763246402693,8.20010012,139.4,139.35,31.2312]